{"text_format":"1","workbook":"xlsx","n_sheets":14,"sheets":["Cover","Info","Results","E01","E02","E03","E04","E05","E06","E07","E08","E09","E10","About"],"not_rendered":{"charts":11,"images":37,"macros":1,"external_links":0,"defined_names":15,"comments":0,"pivot_tables":0},"unopened":[],"bounds":{"document_bytes":16777216,"sheet_cells":100000,"rows_first":2000,"rows_last":500,"rows_between":2000,"halvings":0,"cell_chars":16384,"cell_head_chars":4096},"cells_cut":0,"cells_raw":0,"read":"whole","date_system":"1900"}

{"sheet":"Cover","index":0,"n_rows":0,"n_cols":0,"rows_kept":0,"cut":false,"hidden":false,"merged":[]}

{"sheet":"Info","index":1,"n_rows":39,"n_cols":4,"rows_kept":39,"cut":false,"hidden":false,"merged":[[0,0,0,16383],[38,1,38,3],[39,1,39,3],[2,1,2,2],[3,1,3,2],[4,1,4,2],[5,1,5,2],[6,1,6,2],[37,1,37,3],[31,1,31,2],[32,1,32,2],[33,1,33,2],[34,1,34,2],[35,1,35,2]]}
[]
[]
[null,"Bu Değerlendirme",null,"Yanıt"]
[null,"Kentin adı"]
[null,"Kent türü (belediye, büyükşehir vb.)"]
[null,"Ülke"]
[null,"Değerlendirme tarihi"]
[]
[null,"Kent Profili (Gerekli)","Yanıt","Kaynak Tarihi"]
[null,"En üst düzey yetkilinin unvanı (Belediye Başkanı vb.)"]
[null,"Kentin toplam nüfusu:   "]
[null,"Kilometre kare cinsinden kentin alanı:"]
[null,"Nüfus yoğunluğu (kilometre kare başına): "]
[null,"Genç nüfus oranı (15-24 yaş) (%):"]
[null,"Yaşlı nüfus oranı (65 yaş üstü) (%):"]
[null,"Toplumsal cinsiyet (kadının aile reisi olduğu haneler):"]
[null,"Okuryazarlık oranı (okuryazar nüfus %si):"]
[null,"Yoksulluk oranı (yoksulluk içinde olmayan nüfus %si):"]
[null,"Ortalama hane geliri (USD):"]
[null,"Vatandaş olmayan kent sakinlerinin oranı (%):"]
[null,"Bilinen en olası afet riski: "]
[null,"Bilinen en ciddi afet: "]
[]
[null,"Kent Profili (İsteğe Bağlı)","Yanıt","Kaynak Tarihi"]
[null,"Toplam hane sayısı: "]
[null,"Hane başına kişi sayısı:"]
[null,"Geçim gideri (USD):"]
[null,"Ülkede kişi başına düşen GSYİH (USD):"]
[null,"Gini katsayısı:"]
[null,"Kentte kişi başına düşen gayri safi hasıla (USD):"]
[]
[null,"Yerel Yönetim Afet Riskini Azaltma ve Dirençlilik Ekibi",null,"Yanıt"]
[null,"Karne değerlendirmesinin tamamlanmasında rehberlikten / koordinasyondan sorumlu kişinin adı:"]
[null,"Teşkilat: "]
[null,"İletişim bilgileri:"]
[null,"Sonuçları paylaşma veya UNDRR ve ortakları tarafından örnek / vaka çalışması olarak kullanılma konusundaki isteklilik:"]
[]
[null,"Paydaş Bilgileri"]
[null,"Bu değerlendirmeye destek veren tüm paydaşları lütfen aşağıya listeleyin."]

{"sheet":"Results","index":2,"n_rows":152,"n_cols":13,"rows_kept":152,"cut":false,"hidden":false,"merged":[[71,2,71,5],[72,2,72,5],[74,2,74,5],[94,3,94,5],[102,3,102,6],[97,2,97,5],[98,2,98,5],[79,2,79,5],[80,2,80,5],[81,2,81,5],[34,2,34,5],[89,2,89,5],[90,2,90,5],[91,2,91,5],[41,2,41,5],[42,2,42,5],[43,2,43,5],[52,2,52,5],[59,2,59,5],[65,2,65,5],[57,3,57,6],[39,3,39,6],[63,3,63,6],[69,3,69,6],[77,3,77,6],[73,2,73,5],[113,1,113,3],[96,2,96,5],[104,2,104,5],[105,2,105,5],[99,2,99,5],[111,1,111,2]]}
[]
[]
[]
[]
[]
[]
[]
[]
[]
[]
[]
[]
[]
[]
[]
[]
[]
[]
[]
[]
[]
[]
[]
[]
[]
[]
[]
[]
[]
[]
[]
[]
[null,"Esas 01: ",null,{"$f":"D118","v":"Dirençlilik için Örgütlenme"}]
[]
[null,{"$f":"C130","v":"A1.1"},{"$f":"E130","v":"Sağlık sektörü çok sektörlü afet risk yönetiminin bir parçasıdır"},null,null,null,{"$f":"F130","v":0}]
[]
[]
[]
[]
[null,"Esas 02: ",null,{"$f":"D119","v":"Mevcut ve Geleceğe Yönelik Risk Senaryolarının Tespit Edilmesi, Anlaşılması ve Kullanılması"}]
[]
[null,{"$f":"C131","v":"A2.1"},{"$f":"E131","v":"Acil durumların ve afetlerin (örneğin yerel ve küresel ölçekte salgınlar kıtlık, kuraklık vb.) başlı başına var olan bir afet senaryosu olarak dahil edilmesi"},null,null,null,{"$f":"F131","v":0}]
[null,{"$f":"C132","v":"A2.2"},{"$f":"E132","v":"Diğer afet risk senaryolarının (örneğin sel, küresel ısınma ile ilgili olaylar, deprem vb.) öngörülebilir halk sağlığı etkilerinin dahil edilmesi"},null,null,null,{"$f":"F132","v":0}]
[null,{"$f":"C133","v":"A2.3"},{"$f":"E133","v":"Bulaşıcı olmayan hastalıklar da dahil olmak üzere hâlihazırdaki kronik sağlık koşullarının afet planlamasına dahil edilmesi"},null,null,null,{"$f":"F133","v":0}]
[]
[]
[]
[]
[]
[]
[null,"Esas 03:",null,{"$f":"D120","v":"Dirençlilik İçin Mali Kapasitenin Güçlendirilmesi"}]
[]
[null,{"$f":"C134","v":"A3.1"},{"$f":"E134","v":"Dirençliliğin halk sağlığı ile ilişkili yönlerinin finansmanı"},null,null,null,{"$f":"F134","v":0}]
[]
[]
[]
[]
[null,"Esas 04:",null,{"$f":"D121","v":"Yüksek Dirençli Kentsel Gelişmenin Hedeflenmesi"}]
[]
[null,{"$f":"C135","v":"A4.1"},{"$f":"E135","v":"Temel sağlık tesislerinin dirençliliği artıran arazi kullanımı planları ve imar yasaları ile uyumluluğu"},null,null,null,{"$f":"F135","v":0}]
[]
[]
[]
[null,"Esas 05:",null,{"$f":"D122","v":"Doğal Ekosistemlerin Sağladığı Koruyucu İşlevlerin Geliştirilmesi İçin Doğal Tamponların Korunması"}]
[]
[null,{"$f":"C136","v":"A5.1"},{"$f":"E136","v":"Halk sağlığına fayda sağlayan ekosistem hizmetlerinin korunması ve yönetimi"},null,null,null,{"$f":"F136","v":0}]
[]
[]
[]
[null,"Esas 06:",null,{"$f":"D123","v":"Dirençlilik İçin Kurumsal Kapasitesinin Güçlendirilmesi"}]
[]
[null,{"$f":"C137","v":"A6.1"},{"$f":"E137","v":"Afet dirençliliğini sağlamak için gerekli yeterliliklere ve becerilerle sahip halk sağlığı görevlilerinin  var olması"},null,null,null,{"$f":"F137","v":0}]
[null,{"$f":"C138","v":"A6.2"},{"$f":"E138","v":"Halk sağlığı sistemi verilerinin diğer paydaşlarla paylaşılması"},null,null,null,{"$f":"F138","v":0}]
[null,{"$f":"C139","v":"A6.2.1"},{"$f":"E139","v":"Halk sağlığı sistemi paydaşları ile diğer verilerin paylaşılması"},null,null,null,{"$f":"F139","v":0}]
[null,{"$f":"C140","v":"A6.2.2"},{"$f":"E140","v":"Bireysel sağlık kayıtlarının korunması ve bunlara erişim"},null,null,null,{"$f":"F140","v":0}]
[]
[]
[null,"Esas 07: ",null,{"$f":"D124","v":"Dirençlilik İçin Toplumsal Kapasitenin Anlaşılması ve Güçlendirilmesi"}]
[]
[null,{"$f":"C141","v":"A7.1"},{"$f":"E141","v":"Afet risk yönetimi bağlamında toplum katılımında halk sağlığı sisteminin etkinliği"},null,null,null,{"$f":"F141","v":0}]
[null,{"$f":"C142","v":"A7.1.2"},{"$f":"E142","v":"Toplumun halk sağlığı bilgisine erişimi ve bilgiye duyulan güven"},null,null,null,{"$f":"F142","v":0}]
[null,{"$f":"C143","v":"A7.2"},{"$f":"E143","v":"Toplulukların  “normale dönme” yeteneği - ruh sağlığı"},null,null,null,{"$f":"F143","v":0}]
[]
[]
[]
[]
[]
[null,"Esas 08:",null,{"$f":"D125","v":"Altyapı Dirençliliğinin Artırılması"}]
[]
[null,{"$f":"C144","v":"A8.1"},{"$f":"E144","v":"Esas 8'de ele alınmayan halk sağlığı altyapısı ile ilişkili  öğelerin yapısal ve yapısal olmayan güvenlik ve işlevselliğinin güçlendirilmesi"},null,null,null,{"$f":"F144","v":0}]
[null,{"$f":"C145","v":"A8.2"},{"$f":"E145","v":"Esas 8'de dikkate alınmayan halk sağlığı altyapısının artan talebi karşılama kapasitesi"},null,null,null,{"$f":"F145","v":0}]
[null,{"$f":"C146","v":"A8.3"},{"$f":"E146","v":"Esas 8'de dikkate alınmayan, mevcut hastalığı olan kimselerin bakımının sürekliliği"},null,null,null,{"$f":"F146","v":0}]
[]
[]
[null,"Esas 09:",null,{"$f":"D126","v":"Etkili Afet Müdahalesinin Sağlanması"}]
[]
[null,{"$f":"C147","v":"A9.1"},{"$f":"E147","v":"Sağlıkla ilgili acil durumlar için erken uyarı sistemleri"},null,null,null,{"$f":"F147","v":0}]
[null,{"$f":"C148","v":"A9.2"},{"$f":"E148","v":"Halk sağlığının acil durum yönetimi ile entegrasyonu"},null,null,null,{"$f":"F148","v":0}]
[null,{"$f":"C149","v":"A9.3"},{"$f":"E149","v":"Yüksek riskli nüfusun veya kronik hastalıklı olup kendi evinde tedavi gören kimselerin göz önünde bulundurulması"},null,null,null,{"$f":"F149","v":0}]
[null,{"$f":"C150","v":"A9.4"},{"$f":"E150","v":"İhtiyacı olan kişilere halk sağlığını korumak için gerekli malzemeleri sunabilme."},null,null,null,{"$f":"F150","v":0}]
[]
[]
[null,"Esas 10: ",null,{"$f":"D127","v":"Daha Hızlı Toparlanma ve Daha İyi Yeniden Yapılanma"}]
[]
[null,{"$f":"C151","v":"A10.1"},{"$f":"E151","v":"Halk sağlığı ve refahı üzerindeki uzun vadeli etkilerin azaltılması"},null,null,null,{"$f":"F151","v":0}]
[null,{"$f":"C152","v":"A10.2"},{"$f":"E152","v":"Öğrenme ve iyileştirme"},null,null,null,{"$f":"F152","v":0}]
[]
[]
[]
[]
[]
[null,{"$f":"TODAY()","v":"2020-08-31"},null,null,null,null,null,{"$f":"Info!$B$4","v":"Kentin adı"},{"$f":"Info!$D$4","v":0},null,{"$f":"Info!$B$6","v":"Ülke"},{"$f":"Info!$D$6","v":0}]
[]
[]
[]
[]
[null,null,"Label","Name",null,"Essential","TotalScore","MaxScore","Label"]
[null,null,"S1","Dirençlilik için Örgütlenme",null,"E1",{"$f":"SUMIFS($F$130:$F$189,$B$130:$B$189,F118)","v":0},{"$f":"COUNTIFS($B$130:$B$152,F118)*5","v":5},"01",null,{"$f":"SUM(G118:G127)","v":0},{"$f":"K118/K119","v":0},{"$f":"CONCATENATE(\"Bu değerlendirme için genel puanıdır \",SUM(G118:G127),\" / \",SUM(H118:H127))","v":"Bu değerlendirme için genel puanıdır 0 / 115"}]
[null,null,"S2","Mevcut ve Geleceğe Yönelik Risk Senaryolarının Tespit Edilmesi, Anlaşılması ve Kullanılması",null,"E2",{"$f":"SUMIFS($F$130:$F$1010,$B$130:$B$1010,F119)","v":0},15,"02",null,{"$f":"SUM(H118:H127)","v":115},{"$f":"1-L118","v":1}]
[null,null,"S3","Dirençlilik İçin Mali Kapasitenin Güçlendirilmesi",null,"E3",0,5,"03"]
[null,null,"S4","Yüksek Dirençli Kentsel Gelişmenin Hedeflenmesi",null,"E4",0,5,"04"]
[null,null,"S5","Doğal Ekosistemlerin Sağladığı Koruyucu İşlevlerin Geliştirilmesi İçin Doğal Tamponların Korunması",null,"E5",0,5,"05"]
[null,null,"S6","Dirençlilik İçin Kurumsal Kapasitesinin Güçlendirilmesi",null,"E6",0,20,"06"]
[null,null,"S7","Dirençlilik İçin Toplumsal Kapasitenin Anlaşılması ve Güçlendirilmesi",null,"E7",0,15,"07"]
[null,null,"S8","Altyapı Dirençliliğinin Artırılması",null,"E8",0,15,"08"]
[null,null,"S9","Etkili Afet Müdahalesinin Sağlanması",null,"E9",0,20,"09"]
[null,null,"S10","Daha Hızlı Toparlanma ve Daha İyi Yeniden Yapılanma",null,"E10",0,10,"10"]
[]
[null,"Section","Ref",null,"Question","SelectedScore","ThisScore"]
[null,"E1",{"$f":"'E01'!$G$5","v":"A1.1"},null,{"$f":"'E01'!I5","v":"Sağlık sektörü çok sektörlü afet risk yönetiminin bir parçasıdır"},{"$f":"IF(G130=\"\",0,IF(G130=0,0,6-G130))","v":0},{"$f":"OFFSET('E01'!$E$1,MATCH(C130,'E01'!G:G,0)+3,0)","v":0}]
[null,"E2",{"$f":"'E02'!$G$5","v":"A2.1"},null,{"$f":"'E02'!I5","v":"Acil durumların ve afetlerin (örneğin yerel ve küresel ölçekte salgınlar kıtlık, kuraklık vb.) başlı başına var olan bir afet senaryosu olarak dahil edilmesi"},{"$f":"IF(G131=\"\",0,IF(G131=0,0,6-G131))","v":0},{"$f":"OFFSET('E02'!$E$1,MATCH(C131,'E02'!G:G,0)+3,0)","v":0}]
[null,"E2",{"$f":"'E02'!$G$18","v":"A2.2"},null,{"$f":"'E02'!$I$18","v":"Diğer afet risk senaryolarının (örneğin sel, küresel ısınma ile ilgili olaylar, deprem vb.) öngörülebilir halk sağlığı etkilerinin dahil edilmesi"},0,{"$f":"OFFSET('E02'!$E$1,MATCH(C132,'E02'!G:G,0)+3,0)","v":0}]
[null,"E2",{"$f":"'E02'!$G$31","v":"A2.3"},null,{"$f":"'E02'!$I$31","v":"Bulaşıcı olmayan hastalıklar da dahil olmak üzere hâlihazırdaki kronik sağlık koşullarının afet planlamasına dahil edilmesi"},0,{"$f":"OFFSET('E02'!$E$1,MATCH(C133,'E02'!G:G,0)+3,0)","v":0}]
[null,"E3",{"$f":"'E03'!$G$5","v":"A3.1"},null,{"$f":"'E03'!$I$5","v":"Dirençliliğin halk sağlığı ile ilişkili yönlerinin finansmanı"},0,{"$f":"OFFSET('E03'!$E$1,MATCH(C134,'E03'!G:G,0)+3,0)","v":0}]
[null,"E4",{"$f":"'E04'!$G$5","v":"A4.1"},null,{"$f":"'E04'!$I$5","v":"Temel sağlık tesislerinin dirençliliği artıran arazi kullanımı planları ve imar yasaları ile uyumluluğu"},0,{"$f":"OFFSET('E04'!$E$1,MATCH(C135,'E04'!G:G,0)+3,0)","v":0}]
[null,"E5",{"$f":"'E05'!$G$5","v":"A5.1"},null,{"$f":"'E05'!$I$5","v":"Halk sağlığına fayda sağlayan ekosistem hizmetlerinin korunması ve yönetimi"},0,{"$f":"OFFSET('E05'!$E$1,MATCH(C136,'E05'!G:G,0)+3,0)","v":0}]
[null,"E6",{"$f":"'E06'!$G$5","v":"A6.1"},null,{"$f":"'E06'!$I$5","v":"Afet dirençliliğini sağlamak için gerekli yeterliliklere ve becerilerle sahip halk sağlığı görevlilerinin  var olması"},0,{"$f":"OFFSET('E06'!$E$1,MATCH(C137,'E06'!G:G,0)+3,0)","v":0}]
[null,"E6",{"$f":"'E06'!$G$18","v":"A6.2"},null,{"$f":"'E06'!$I$18","v":"Halk sağlığı sistemi verilerinin diğer paydaşlarla paylaşılması"},0,{"$f":"OFFSET('E06'!$E$1,MATCH(C138,'E06'!G:G,0)+3,0)","v":0}]
[null,"E6",{"$f":"'E06'!$G$31","v":"A6.2.1"},null,{"$f":"'E06'!$I$31","v":"Halk sağlığı sistemi paydaşları ile diğer verilerin paylaşılması"},0,{"$f":"OFFSET('E06'!$E$1,MATCH(C139,'E06'!G:G,0)+3,0)","v":0}]
[null,"E6",{"$f":"'E06'!$G$44","v":"A6.2.2"},null,{"$f":"'E06'!$I$44","v":"Bireysel sağlık kayıtlarının korunması ve bunlara erişim"},0,{"$f":"OFFSET('E06'!$E$1,MATCH(C140,'E06'!G:G,0)+3,0)","v":0}]
[null,"E7",{"$f":"'E07'!$G$5","v":"A7.1"},null,{"$f":"'E07'!$I$5","v":"Afet risk yönetimi bağlamında toplum katılımında halk sağlığı sisteminin etkinliği"},0,{"$f":"OFFSET('E07'!$E$1,MATCH(C141,'E07'!G:G,0)+3,0)","v":0}]
[null,"E7",{"$f":"'E07'!$G$18","v":"A7.1.2"},null,{"$f":"'E07'!$I$18","v":"Toplumun halk sağlığı bilgisine erişimi ve bilgiye duyulan güven"},0,{"$f":"OFFSET('E07'!$E$1,MATCH(C142,'E07'!G:G,0)+3,0)","v":0}]
[null,"E7",{"$f":"'E07'!$G$31","v":"A7.2"},null,{"$f":"'E07'!$I$31","v":"Toplulukların  “normale dönme” yeteneği - ruh sağlığı"},0,{"$f":"OFFSET('E07'!$E$1,MATCH(C143,'E07'!G:G,0)+3,0)","v":0}]
[null,"E8",{"$f":"'E08'!$G$5","v":"A8.1"},null,{"$f":"'E08'!$I$5","v":"Esas 8'de ele alınmayan halk sağlığı altyapısı ile ilişkili  öğelerin yapısal ve yapısal olmayan güvenlik ve işlevselliğinin güçlendirilmesi"},0,{"$f":"OFFSET('E08'!$E$1,MATCH(C144,'E08'!G:G,0)+3,0)","v":0}]
[null,"E8",{"$f":"'E08'!$G$18","v":"A8.2"},null,{"$f":"'E08'!$I$18","v":"Esas 8'de dikkate alınmayan halk sağlığı altyapısının artan talebi karşılama kapasitesi"},{"$f":"IF(G145=\"\",0,IF(G145=0,0,6-G145))","v":0},{"$f":"OFFSET('E08'!$E$1,MATCH(C145,'E08'!G:G,0)+3,0)","v":0}]
[null,"E8",{"$f":"'E08'!$G$31","v":"A8.3"},null,{"$f":"'E08'!$I$31","v":"Esas 8'de dikkate alınmayan, mevcut hastalığı olan kimselerin bakımının sürekliliği"},0,{"$f":"OFFSET('E08'!$E$1,MATCH(C146,'E08'!G:G,0)+3,0)","v":0}]
[null,"E9",{"$f":"'E09'!$G$5","v":"A9.1"},null,{"$f":"'E09'!$I$5","v":"Sağlıkla ilgili acil durumlar için erken uyarı sistemleri"},0,{"$f":"OFFSET('E09'!$E$1,MATCH(C147,'E09'!G:G,0)+3,0)","v":0}]
[null,"E9",{"$f":"'E09'!$G$18","v":"A9.2"},null,{"$f":"'E09'!$I$18","v":"Halk sağlığının acil durum yönetimi ile entegrasyonu"},0,{"$f":"OFFSET('E09'!$E$1,MATCH(C148,'E09'!G:G,0)+3,0)","v":0}]
[null,"E9",{"$f":"'E09'!$G$31","v":"A9.3"},null,{"$f":"'E09'!$I$31","v":"Yüksek riskli nüfusun veya kronik hastalıklı olup kendi evinde tedavi gören kimselerin göz önünde bulundurulması"},0,{"$f":"OFFSET('E09'!$E$1,MATCH(C149,'E09'!G:G,0)+3,0)","v":0}]
[null,"E9",{"$f":"'E09'!$G$44","v":"A9.4"},null,{"$f":"'E09'!$I$44","v":"İhtiyacı olan kişilere halk sağlığını korumak için gerekli malzemeleri sunabilme."},0,{"$f":"OFFSET('E09'!$E$1,MATCH(C150,'E09'!G:G,0)+3,0)","v":0}]
[null,"E10",{"$f":"'E10'!$G$5","v":"A10.1"},null,{"$f":"'E10'!$I$5","v":"Halk sağlığı ve refahı üzerindeki uzun vadeli etkilerin azaltılması"},0,{"$f":"OFFSET('E10'!$E$1,MATCH(C151,'E10'!G:G,0)+3,0)","v":0}]
[null,"E10",{"$f":"'E10'!$G$18","v":"A10.2"},null,{"$f":"'E10'!$I$18","v":"Öğrenme ve iyileştirme"},0,{"$f":"OFFSET('E10'!$E$1,MATCH(C152,'E10'!G:G,0)+3,0)","v":0}]

{"sheet":"E01","index":3,"n_rows":15,"n_cols":9,"rows_kept":15,"cut":false,"hidden":false,"merged":[[7,2,7,3],[8,2,13,3],[5,2,5,3],[6,2,6,3]]}
["a"]
[]
[null,"A.1 Halk Sağlığı ve yönetişimin entegrasyonu (Esas 1)",null,null,null,null,"A.1",null,"Halk Sağlığı ve yönetişimin entegrasyonu (Esas 1)"]
[]
[null,"A.1.1 Sağlık sektörü çok sektörlü afet risk yönetiminin bir parçasıdır",null,null,null,null,"A1.1",null,"Sağlık sektörü çok sektörlü afet risk yönetiminin bir parçasıdır"]
[null,"Soru","Açıklama"]
[]
[null,"Yanıt","Doğrulama yollarını belirtin (açıklama ve kanıt)"]
[null,null,null,null,null,{"$f":"IF(E9=1,TRUE,FALSE)","v":false}]
[null,null,null,null,null,{"$f":"IF(E9=2,TRUE,FALSE)","v":false}]
[null,null,null,null,null,{"$f":"IF(E9=3,TRUE,FALSE)","v":false}]
[null,null,null,null,null,{"$f":"IF(E9=4,TRUE,FALSE)","v":false}]
[null,null,null,null,null,{"$f":"IF(E9=5,TRUE,FALSE)","v":false}]
[null,null,null,null,null,{"$f":"IF(E9=6,TRUE,FALSE)","v":false}]
[null,"Azami düzeyde dirençlilik elde etmek için yapılabilecek eylemler","Sorumlu kuruluş","Zaman cetveli"]

{"sheet":"E02","index":4,"n_rows":41,"n_cols":9,"rows_kept":41,"cut":false,"hidden":false,"merged":[[20,2,20,3],[8,2,13,3],[21,2,26,3],[34,2,39,3],[31,2,31,3],[32,2,32,3],[33,2,33,3],[5,2,5,3],[6,2,6,3],[7,2,7,3],[18,2,18,3],[19,2,19,3]]}
[]
[]
[null,"A.2 Halk sağlığı ve afet senaryolarının entegrasyonu (Esas 2)",null,null,null,null,"A.2",null,"Halk sağlığı ve afet senaryolarının entegrasyonu (Esas 2)"]
[]
[null,"A2.1 Acil durumların ve afetlerin (örneğin yerel ve küresel ölçekte salgınlar kıtlık, kuraklık vb.) başlı başına var olan bir afet senaryosu olarak dahil edilmesi",null,null,null,null,"A2.1",null,"Acil durumların ve afetlerin (örneğin yerel ve küresel ölçekte salgınlar kıtlık, kuraklık vb.) başlı başına var olan bir afet senaryosu olarak dahil edilmesi"]
[null,"Soru","Açıklama"]
[]
[null,"Yanıt","Doğrulama yollarını belirtin (açıklama ve kanıt)"]
[null,null,null,null,null,{"$f":"IF(E9=1,TRUE,FALSE)","v":false}]
[null,null,null,null,null,{"$f":"IF(E9=2,TRUE,FALSE)","v":false}]
[null,null,null,null,null,{"$f":"IF(E9=3,TRUE,FALSE)","v":false}]
[null,null,null,null,null,{"$f":"IF(E9=4,TRUE,FALSE)","v":false}]
[null,null,null,null,null,{"$f":"IF(E9=5,TRUE,FALSE)","v":false}]
[null,null,null,null,null,{"$f":"IF(E9=6,TRUE,FALSE)","v":false}]
[null,"Azami düzeyde dirençlilik elde etmek için yapılabilecek eylemler","Sorumlu kuruluş","Zaman cetveli"]
[]
[]
[null,"A2.2 Diğer afet risk senaryolarının (örneğin sel, küresel ısınma ile ilgili olaylar, deprem vb.) öngörülebilir halk sağlığı etkilerinin dahil edilmesi",null,null,null,null,"A2.2",null,"Diğer afet risk senaryolarının (örneğin sel, küresel ısınma ile ilgili olaylar, deprem vb.) öngörülebilir halk sağlığı etkilerinin dahil edilmesi"]
[null,"Soru","Açıklama"]
[]
[null,"Yanıt","Doğrulama yollarını belirtin (açıklama ve kanıt)"]
[null,null,null,null,null,{"$f":"IF(E22=1,TRUE,FALSE)","v":false}]
[null,null,null,null,null,{"$f":"IF(E22=2,TRUE,FALSE)","v":false}]
[null,null,null,null,null,{"$f":"IF(E22=3,TRUE,FALSE)","v":false}]
[null,null,null,null,null,{"$f":"IF(E22=4,TRUE,FALSE)","v":false}]
[null,null,null,null,null,{"$f":"IF(E22=5,TRUE,FALSE)","v":false}]
[null,null,null,null,null,{"$f":"IF(E22=6,TRUE,FALSE)","v":false}]
[null,"Azami düzeyde dirençlilik elde etmek için yapılabilecek eylemler","Sorumlu kuruluş","Zaman cetveli"]
[]
[]
[null,"A2.3 Bulaşıcı olmayan hastalıklar da dahil olmak üzere hâlihazırdaki kronik sağlık koşullarının afet planlamasına dahil edilmesi",null,null,null,null,"A2.3",null,"Bulaşıcı olmayan hastalıklar da dahil olmak üzere hâlihazırdaki kronik sağlık koşullarının afet planlamasına dahil edilmesi"]
[null,"Soru","Açıklama"]
[]
[null,"Yanıt","Doğrulama yollarını belirtin (açıklama ve kanıt)"]
[null,null,null,null,null,{"$f":"IF(E35=1,TRUE,FALSE)","v":false}]
[null,null,null,null,null,{"$f":"IF(E35=2,TRUE,FALSE)","v":false}]
[null,null,null,null,null,{"$f":"IF(E35=3,TRUE,FALSE)","v":false}]
[null,null,null,null,null,{"$f":"IF(E35=4,TRUE,FALSE)","v":false}]
[null,null,null,null,null,{"$f":"IF(E35=5,TRUE,FALSE)","v":false}]
[null,null,null,null,null,{"$f":"IF(E35=6,TRUE,FALSE)","v":false}]
[null,"Azami düzeyde dirençlilik elde etmek için yapılabilecek eylemler","Sorumlu kuruluş","Zaman cetveli"]

{"sheet":"E03","index":5,"n_rows":15,"n_cols":9,"rows_kept":15,"cut":false,"hidden":false,"merged":[[4,1,4,3],[5,2,5,3],[6,2,6,3],[7,2,7,3],[8,2,13,3]]}
[]
[]
[null,"A3. Halk sağlığı ve mali durumun entegrasyonu (Esas 3)",null,null,null,null,"A3",null,"Halk sağlığı ve mali durumun entegrasyonu (Esas 3)"]
[]
[null,"A3.1 Dirençliliğin halk sağlığı ile ilişkili yönlerinin finansmanı",null,null,null,null,"A3.1",null,"Dirençliliğin halk sağlığı ile ilişkili yönlerinin finansmanı"]
[null,"Soru","Açıklama"]
[]
[null,"Yanıt","Doğrulama yollarını belirtin (açıklama ve kanıt)"]
[null,null,null,null,null,{"$f":"IF(E9=1,TRUE,FALSE)","v":false}]
[null,null,null,null,null,{"$f":"IF(E9=2,TRUE,FALSE)","v":false}]
[null,null,null,null,null,{"$f":"IF(E9=3,TRUE,FALSE)","v":false}]
[null,null,null,null,null,{"$f":"IF(E9=4,TRUE,FALSE)","v":false}]
[null,null,null,null,null,{"$f":"IF(E9=5,TRUE,FALSE)","v":false}]
[null,null,null,null,null,{"$f":"IF(E9=6,TRUE,FALSE)","v":false}]
[null,"Azami düzeyde dirençlilik elde etmek için yapılabilecek eylemler","Sorumlu kuruluş","Zaman cetveli"]

{"sheet":"E04","index":6,"n_rows":15,"n_cols":9,"rows_kept":15,"cut":false,"hidden":false,"merged":[[4,1,4,3],[5,2,5,3],[6,2,6,3],[7,2,7,3],[8,2,13,3]]}
[]
[]
[null,"A4. Halk sağlığı ve arazi kullanımı/ imar yasalarının entegrasyonu (Esas 4)",null,null,null,null,"A4",null,"Halk sağlığı ve arazi kullanımı/ imar yasalarının entegrasyonu (Esas 4)"]
[]
[null,"A4.1 Temel sağlık tesislerinin dirençliliği artıran arazi kullanımı planları ve imar yasaları ile uyumluluğu",null,null,null,null,"A4.1",null,"Temel sağlık tesislerinin dirençliliği artıran arazi kullanımı planları ve imar yasaları ile uyumluluğu"]
[null,"Soru","Açıklama"]
[]
[null,"Yanıt","Doğrulama yollarını belirtin (açıklama ve kanıt)"]
[null,null,null,null,null,{"$f":"IF(E9=1,TRUE,FALSE)","v":false}]
[null,null,null,null,null,{"$f":"IF(E9=2,TRUE,FALSE)","v":false}]
[null,null,null,null,null,{"$f":"IF(E9=3,TRUE,FALSE)","v":false}]
[null,null,null,null,null,{"$f":"IF(E9=4,TRUE,FALSE)","v":false}]
[null,null,null,null,null,{"$f":"IF(E9=5,TRUE,FALSE)","v":false}]
[null,null,null,null,null,{"$f":"IF(E9=6,TRUE,FALSE)","v":false}]
[null,"Azami düzeyde dirençlilik elde etmek için yapılabilecek eylemler","Sorumlu kuruluş","Zaman cetveli"]

{"sheet":"E05","index":7,"n_rows":15,"n_cols":9,"rows_kept":15,"cut":false,"hidden":false,"merged":[[4,1,4,3],[5,2,5,3],[6,2,6,3],[7,2,7,3],[8,2,13,3]]}
[]
[]
[null,"A5. Halk sağlığını etkileyen ekosistem hizmetlerinin yönetimi (Esas 5)",null,null,null,null,"A5",null,"Halk sağlığını etkileyen ekosistem hizmetlerinin yönetimi (Esas 5)"]
[]
[null,"A5.1 Halk sağlığına fayda sağlayan ekosistem hizmetlerinin korunması ve yönetimi",null,null,null,null,"A5.1",null,"Halk sağlığına fayda sağlayan ekosistem hizmetlerinin korunması ve yönetimi"]
[null,"Soru","Açıklama"]
[]
[null,"Yanıt","Doğrulama yollarını belirtin (açıklama ve kanıt)"]
[null,null,null,null,null,{"$f":"IF(E9=1,TRUE,FALSE)","v":false}]
[null,null,null,null,null,{"$f":"IF(E9=2,TRUE,FALSE)","v":false}]
[null,null,null,null,null,{"$f":"IF(E9=3,TRUE,FALSE)","v":false}]
[null,null,null,null,null,{"$f":"IF(E9=4,TRUE,FALSE)","v":false}]
[null,null,null,null,null,{"$f":"IF(E9=5,TRUE,FALSE)","v":false}]
[null,null,null,null,null,{"$f":"IF(E9=6,TRUE,FALSE)","v":false}]
[null,"Azami düzeyde dirençlilik elde etmek için yapılabilecek eylemler","Sorumlu kuruluş","Zaman cetveli"]

{"sheet":"E06","index":8,"n_rows":54,"n_cols":9,"rows_kept":54,"cut":false,"hidden":false,"merged":[[18,2,18,3],[47,2,52,3],[34,2,39,3],[21,2,26,3],[19,2,19,3],[20,2,20,3],[30,1,30,3],[31,2,31,3],[32,2,32,3],[33,2,33,3],[43,1,43,3],[44,2,44,3],[45,2,45,3],[46,2,46,3],[4,1,4,3],[5,2,5,3],[6,2,6,3],[7,2,7,3],[17,1,17,3],[8,2,13,3]]}
[]
[]
[null,"A6. Halk sağlığı ve kurumsal kapasitenin entegrasyonu (Esas 6)",null,null,null,null,"A6",null,"Halk sağlığı ve kurumsal kapasitenin entegrasyonu (Esas 6)"]
[]
[null,"A6.1 Afet dirençliliğini sağlamak için gerekli yeterliliklere ve becerilerle sahip halk sağlığı görevlilerinin  var olması",null,null,null,null,"A6.1",null,"Afet dirençliliğini sağlamak için gerekli yeterliliklere ve becerilerle sahip halk sağlığı görevlilerinin  var olması"]
[null,"Soru","Açıklama"]
[]
[null,"Yanıt","Doğrulama yollarını belirtin (açıklama ve kanıt)"]
[null,null,null,null,null,{"$f":"IF(E9=1,TRUE,FALSE)","v":false}]
[null,null,null,null,null,{"$f":"IF(E9=2,TRUE,FALSE)","v":false}]
[null,null,null,null,null,{"$f":"IF(E9=3,TRUE,FALSE)","v":false}]
[null,null,null,null,null,{"$f":"IF(E9=4,TRUE,FALSE)","v":false}]
[null,null,null,null,null,{"$f":"IF(E9=5,TRUE,FALSE)","v":false}]
[null,null,null,null,null,{"$f":"IF(E9=6,TRUE,FALSE)","v":false}]
[null,"Azami düzeyde dirençlilik elde etmek için yapılabilecek eylemler","Sorumlu kuruluş","Zaman cetveli"]
[]
[]
[null,"A6.2 Halk sağlığı sistemi verilerinin diğer paydaşlarla paylaşılması",null,null,null,null,"A6.2",null,"Halk sağlığı sistemi verilerinin diğer paydaşlarla paylaşılması"]
[null,"Soru","Açıklama"]
[]
[null,"Yanıt","Doğrulama yollarını belirtin (açıklama ve kanıt)"]
[null,null,null,null,null,{"$f":"IF(E22=1,TRUE,FALSE)","v":false}]
[null,null,null,null,null,{"$f":"IF(E22=2,TRUE,FALSE)","v":false}]
[null,null,null,null,null,{"$f":"IF(E22=3,TRUE,FALSE)","v":false}]
[null,null,null,null,null,{"$f":"IF(E22=4,TRUE,FALSE)","v":false}]
[null,null,null,null,null,{"$f":"IF(E22=5,TRUE,FALSE)","v":false}]
[null,null,null,null,null,{"$f":"IF(E22=6,TRUE,FALSE)","v":false}]
[null,"Azami düzeyde dirençlilik elde etmek için yapılabilecek eylemler","Sorumlu kuruluş","Zaman cetveli"]
[]
[]
[null,"A6.2.1 Halk sağlığı sistemi paydaşları ile diğer verilerin paylaşılması",null,null,null,null,"A6.2.1",null,"Halk sağlığı sistemi paydaşları ile diğer verilerin paylaşılması"]
[null,"Soru","Açıklama"]
[]
[null,"Yanıt","Doğrulama yollarını belirtin (açıklama ve kanıt)"]
[null,null,null,null,null,{"$f":"IF(E35=1,TRUE,FALSE)","v":false}]
[null,null,null,null,null,{"$f":"IF(E35=2,TRUE,FALSE)","v":false}]
[null,null,null,null,null,{"$f":"IF(E35=3,TRUE,FALSE)","v":false}]
[null,null,null,null,null,{"$f":"IF(E35=4,TRUE,FALSE)","v":false}]
[null,null,null,null,null,{"$f":"IF(E35=5,TRUE,FALSE)","v":false}]
[null,null,null,null,null,{"$f":"IF(E35=6,TRUE,FALSE)","v":false}]
[null,"Azami düzeyde dirençlilik elde etmek için yapılabilecek eylemler","Sorumlu kuruluş","Zaman cetveli"]
[]
[]
[null,"A6.2.2 Bireysel sağlık kayıtlarının korunması ve bunlara erişim",null,null,null,null,"A6.2.2",null,"Bireysel sağlık kayıtlarının korunması ve bunlara erişim"]
[null,"Soru","Açıklama"]
[]
[null,"Yanıt","Doğrulama yollarını belirtin (açıklama ve kanıt)"]
[null,null,null,null,null,{"$f":"IF(E48=1,TRUE,FALSE)","v":false}]
[null,null,null,null,null,{"$f":"IF(E48=2,TRUE,FALSE)","v":false}]
[null,null,null,null,null,{"$f":"IF(E48=3,TRUE,FALSE)","v":false}]
[null,null,null,null,null,{"$f":"IF(E48=4,TRUE,FALSE)","v":false}]
[null,null,null,null,null,{"$f":"IF(E48=5,TRUE,FALSE)","v":false}]
[null,null,null,null,null,{"$f":"IF(E48=6,TRUE,FALSE)","v":false}]
[null,"Azami düzeyde dirençlilik elde etmek için yapılabilecek eylemler","Sorumlu kuruluş","Zaman cetveli"]

{"sheet":"E07","index":9,"n_rows":43,"n_cols":9,"rows_kept":43,"cut":false,"hidden":false,"merged":[[18,2,18,3],[8,2,13,3],[21,2,26,3],[34,2,39,3],[19,2,19,3],[20,2,20,3],[30,1,30,3],[31,2,31,3],[32,2,32,3],[33,2,33,3],[4,1,4,3],[5,2,5,3],[6,2,6,3],[7,2,7,3],[17,1,17,3]]}
[]
[]
[null,"A7. Halk sağlığı ve toplumsal kapasitenin entegrasyonu (Esas 7)",null,null,null,null,"A7",null,"Halk sağlığı ve toplumsal kapasitenin entegrasyonu (Esas 7)"]
[null,null,null,null,null,null,""]
[null,"A7.1 Afet risk yönetimi bağlamında toplum katılımında halk sağlığı sisteminin etkinliği",null,null,null,null,"A7.1",null,"Afet risk yönetimi bağlamında toplum katılımında halk sağlığı sisteminin etkinliği"]
[null,"Soru","Açıklama",null,null,null,""]
[null,null,null,null,null,null,""]
[null,"Yanıt","Doğrulama yollarını belirtin (açıklama ve kanıt)",null,null,null,""]
[null,null,null,null,null,{"$f":"IF(E9=1,TRUE,FALSE)","v":false},""]
[null,null,null,null,null,{"$f":"IF(E9=2,TRUE,FALSE)","v":false},""]
[null,null,null,null,null,{"$f":"IF(E9=3,TRUE,FALSE)","v":false},""]
[null,null,null,null,null,{"$f":"IF(E9=4,TRUE,FALSE)","v":false},""]
[null,null,null,null,null,{"$f":"IF(E9=5,TRUE,FALSE)","v":false},""]
[null,null,null,null,null,{"$f":"IF(E9=6,TRUE,FALSE)","v":false},""]
[null,"Azami düzeyde dirençlilik elde etmek için yapılabilecek eylemler","Sorumlu kuruluş","Zaman cetveli",null,null,""]
[null,null,null,null,null,null,""]
[null,null,null,null,null,null,""]
[null,"A7.1.2 Toplumun halk sağlığı bilgisine erişimi ve bilgiye duyulan güven",null,null,null,null,"A7.1.2",null,"Toplumun halk sağlığı bilgisine erişimi ve bilgiye duyulan güven"]
[null,"Soru","Açıklama",null,null,null,""]
[null,null,null,null,null,null,""]
[null,"Yanıt","Doğrulama yollarını belirtin (açıklama ve kanıt)",null,null,null,""]
[null,null,null,null,null,{"$f":"IF(E22=1,TRUE,FALSE)","v":false},""]
[null,null,null,null,null,{"$f":"IF(E22=2,TRUE,FALSE)","v":false},""]
[null,null,null,null,null,{"$f":"IF(E22=3,TRUE,FALSE)","v":false},""]
[null,null,null,null,null,{"$f":"IF(E22=4,TRUE,FALSE)","v":false},""]
[null,null,null,null,null,{"$f":"IF(E22=5,TRUE,FALSE)","v":false},""]
[null,null,null,null,null,{"$f":"IF(E22=6,TRUE,FALSE)","v":false},""]
[null,"Azami düzeyde dirençlilik elde etmek için yapılabilecek eylemler","Sorumlu kuruluş","Zaman cetveli",null,null,""]
[null,null,null,null,null,null,""]
[null,null,null,null,null,null,""]
[null,"A7.2 Toplulukların  “normale dönme” yeteneği - ruh sağlığı",null,null,null,null,"A7.2",null,"Toplulukların  “normale dönme” yeteneği - ruh sağlığı"]
[null,"Soru","Açıklama",null,null,null,""]
[null,null,null,null,null,null,""]
[null,"Yanıt","Doğrulama yollarını belirtin (açıklama ve kanıt)",null,null,null,""]
[null,null,null,null,null,{"$f":"IF(E35=1,TRUE,FALSE)","v":false},""]
[null,null,null,null,null,{"$f":"IF(E35=2,TRUE,FALSE)","v":false},""]
[null,null,null,null,null,{"$f":"IF(E35=3,TRUE,FALSE)","v":false},""]
[null,null,null,null,null,{"$f":"IF(E35=4,TRUE,FALSE)","v":false},""]
[null,null,null,null,null,{"$f":"IF(E35=5,TRUE,FALSE)","v":false},""]
[null,null,null,null,null,{"$f":"IF(E35=6,TRUE,FALSE)","v":false},""]
[null,"Azami düzeyde dirençlilik elde etmek için yapılabilecek eylemler","Sorumlu kuruluş","Zaman cetveli",null,null,""]
[null,null,null,null,null,null,""]
[null,null,null,null,null,null,""]

{"sheet":"E08","index":10,"n_rows":43,"n_cols":9,"rows_kept":43,"cut":false,"hidden":false,"merged":[[34,2,39,3],[21,2,26,3],[8,2,13,3],[33,2,33,3],[4,1,4,3],[5,2,5,3],[6,2,6,3],[7,2,7,3],[17,1,17,3],[18,2,18,3],[19,2,19,3],[20,2,20,3],[30,1,30,3],[31,2,31,3],[32,2,32,3]]}
[]
[]
[null,"A8. Halk sağlığı ve altyapı esnekliğinin entegrasyonu (Esas 8)",null,null,null,null,"A8",null,"Halk sağlığı ve altyapı esnekliğinin entegrasyonu (Esas 8)"]
[null,null,null,null,null,null,""]
[null,"A8.1 Esas 8'de ele alınmayan halk sağlığı altyapısı ile ilişkili  öğelerin yapısal ve yapısal olmayan güvenlik ve işlevselliğinin güçlendirilmesi",null,null,null,null,"A8.1",null,"Esas 8'de ele alınmayan halk sağlığı altyapısı ile ilişkili  öğelerin yapısal ve yapısal olmayan güvenlik ve işlevselliğinin güçlendirilmesi"]
[null,"Soru","Açıklama",null,null,null,""]
[null,null,null,null,null,null,""]
[null,"Yanıt","Doğrulama yollarını belirtin (açıklama ve kanıt)",null,null,null,""]
[null,null,null,null,null,{"$f":"IF(E9=1,TRUE,FALSE)","v":false},""]
[null,null,null,null,null,{"$f":"IF(E9=2,TRUE,FALSE)","v":false},""]
[null,null,null,null,null,{"$f":"IF(E9=3,TRUE,FALSE)","v":false},""]
[null,null,null,null,null,{"$f":"IF(E9=4,TRUE,FALSE)","v":false},""]
[null,null,null,null,null,{"$f":"IF(E9=5,TRUE,FALSE)","v":false},""]
[null,null,null,null,null,{"$f":"IF(E9=6,TRUE,FALSE)","v":false},""]
[null,"Azami düzeyde dirençlilik elde etmek için yapılabilecek eylemler","Sorumlu kuruluş","Zaman cetveli",null,null,""]
[null,null,null,null,null,null,""]
[null,null,null,null,null,null,""]
[null,"A8.2 Esas 8'de dikkate alınmayan halk sağlığı altyapısının artan talebi karşılama kapasitesi",null,null,null,null,"A8.2",null,"Esas 8'de dikkate alınmayan halk sağlığı altyapısının artan talebi karşılama kapasitesi"]
[null,"Soru","Açıklama",null,null,null,""]
[null,null,null,null,null,null,""]
[null,"Yanıt","Doğrulama yollarını belirtin (açıklama ve kanıt)",null,null,null,""]
[null,null,null,null,null,{"$f":"IF(E22=1,TRUE,FALSE)","v":false},""]
[null,null,null,null,null,{"$f":"IF(E22=2,TRUE,FALSE)","v":false},""]
[null,null,null,null,null,{"$f":"IF(E22=3,TRUE,FALSE)","v":false},""]
[null,null,null,null,null,{"$f":"IF(E22=4,TRUE,FALSE)","v":false},""]
[null,null,null,null,null,{"$f":"IF(E22=5,TRUE,FALSE)","v":false},""]
[null,null,null,null,null,{"$f":"IF(E22=6,TRUE,FALSE)","v":false},""]
[null,"Azami düzeyde dirençlilik elde etmek için yapılabilecek eylemler","Sorumlu kuruluş","Zaman cetveli",null,null,""]
[null,null,null,null,null,null,""]
[null,null,null,null,null,null,""]
[null,"A8.3 Esas 8'de dikkate alınmayan, mevcut hastalığı olan kimselerin bakımının sürekliliği",null,null,null,null,"A8.3",null,"Esas 8'de dikkate alınmayan, mevcut hastalığı olan kimselerin bakımının sürekliliği"]
[null,"Soru","Açıklama",null,null,null,""]
[null,null,null,null,null,null,""]
[null,"Yanıt","Doğrulama yollarını belirtin (açıklama ve kanıt)",null,null,null,""]
[null,null,null,null,null,{"$f":"IF(E35=1,TRUE,FALSE)","v":false},""]
[null,null,null,null,null,{"$f":"IF(E35=2,TRUE,FALSE)","v":false},""]
[null,null,null,null,null,{"$f":"IF(E35=3,TRUE,FALSE)","v":false},""]
[null,null,null,null,null,{"$f":"IF(E35=4,TRUE,FALSE)","v":false},""]
[null,null,null,null,null,{"$f":"IF(E35=5,TRUE,FALSE)","v":false},""]
[null,null,null,null,null,{"$f":"IF(E35=6,TRUE,FALSE)","v":false},""]
[null,"Azami düzeyde dirençlilik elde etmek için yapılabilecek eylemler","Sorumlu kuruluş","Zaman cetveli",null,null,""]
[null,null,null,null,null,null,""]
[null,null,null,null,null,null,""]

{"sheet":"E09","index":11,"n_rows":56,"n_cols":9,"rows_kept":56,"cut":false,"hidden":false,"merged":[[19,2,19,3],[20,2,20,3],[4,1,4,3],[5,2,5,3],[6,2,6,3],[7,2,7,3],[17,1,17,3],[18,2,18,3],[8,2,13,3],[47,2,52,3],[34,2,39,3],[21,2,26,3],[30,1,30,3],[31,2,31,3],[32,2,32,3],[33,2,33,3],[43,1,43,3],[44,2,44,3],[45,2,45,3],[46,2,46,3]]}
[]
[]
[null,"A9. Halk sağlığı ve afet müdahalesinin entegrasyonu (Esas 9)",null,null,null,null,"A9",null,"Halk sağlığı ve afet müdahalesinin entegrasyonu (Esas 9)"]
[null,null,null,null,null,null,""]
[null,"A9.1 Sağlıkla ilgili acil durumlar için erken uyarı sistemleri",null,null,null,null,"A9.1",null,"Sağlıkla ilgili acil durumlar için erken uyarı sistemleri"]
[null,"Soru","Açıklama",null,null,null,""]
[null,null,null,null,null,null,""]
[null,"Yanıt","Doğrulama yollarını belirtin (açıklama ve kanıt)",null,null,null,""]
[null,null,null,null,null,{"$f":"IF(E9=1,TRUE,FALSE)","v":false},""]
[null,null,null,null,null,{"$f":"IF(E9=2,TRUE,FALSE)","v":false},""]
[null,null,null,null,null,{"$f":"IF(E9=3,TRUE,FALSE)","v":false},""]
[null,null,null,null,null,{"$f":"IF(E9=4,TRUE,FALSE)","v":false},""]
[null,null,null,null,null,{"$f":"IF(E9=5,TRUE,FALSE)","v":false},""]
[null,null,null,null,null,{"$f":"IF(E9=6,TRUE,FALSE)","v":false},""]
[null,"Azami düzeyde dirençlilik elde etmek için yapılabilecek eylemler","Sorumlu kuruluş","Zaman cetveli",null,null,""]
[null,null,null,null,null,null,""]
[null,null,null,null,null,null,""]
[null,"A9.2 Halk sağlığının acil durum yönetimi ile entegrasyonu",null,null,null,null,"A9.2",null,"Halk sağlığının acil durum yönetimi ile entegrasyonu"]
[null,"Soru","Açıklama",null,null,null,""]
[null,null,null,null,null,null,""]
[null,"Yanıt","Doğrulama yollarını belirtin (açıklama ve kanıt)",null,null,null,""]
[null,null,null,null,null,{"$f":"IF(E22=1,TRUE,FALSE)","v":false},""]
[null,null,null,null,null,{"$f":"IF(E22=2,TRUE,FALSE)","v":false},""]
[null,null,null,null,null,{"$f":"IF(E22=3,TRUE,FALSE)","v":false},""]
[null,null,null,null,null,{"$f":"IF(E22=4,TRUE,FALSE)","v":false},""]
[null,null,null,null,null,{"$f":"IF(E22=5,TRUE,FALSE)","v":false},""]
[null,null,null,null,null,{"$f":"IF(E22=6,TRUE,FALSE)","v":false},""]
[null,"Azami düzeyde dirençlilik elde etmek için yapılabilecek eylemler","Sorumlu kuruluş","Zaman cetveli",null,null,""]
[null,null,null,null,null,null,""]
[null,null,null,null,null,null,""]
[null,"A9.3 Yüksek riskli nüfusun veya kronik hastalıklı olup kendi evinde tedavi gören kimselerin göz önünde bulundurulması",null,null,null,null,"A9.3",null,"Yüksek riskli nüfusun veya kronik hastalıklı olup kendi evinde tedavi gören kimselerin göz önünde bulundurulması"]
[null,"Soru","Açıklama",null,null,null,""]
[null,null,null,null,null,null,""]
[null,"Yanıt","Doğrulama yollarını belirtin (açıklama ve kanıt)",null,null,null,""]
[null,null,null,null,null,{"$f":"IF(E35=1,TRUE,FALSE)","v":false},""]
[null,null,null,null,null,{"$f":"IF(E35=2,TRUE,FALSE)","v":false},""]
[null,null,null,null,null,{"$f":"IF(E35=3,TRUE,FALSE)","v":false},""]
[null,null,null,null,null,{"$f":"IF(E35=4,TRUE,FALSE)","v":false},""]
[null,null,null,null,null,{"$f":"IF(E35=5,TRUE,FALSE)","v":false},""]
[null,null,null,null,null,{"$f":"IF(E35=6,TRUE,FALSE)","v":false},""]
[null,"Azami düzeyde dirençlilik elde etmek için yapılabilecek eylemler","Sorumlu kuruluş","Zaman cetveli",null,null,""]
[null,null,null,null,null,null,""]
[null,null,null,null,null,null,""]
[null,"A9.4 İhtiyacı olan kişilere halk sağlığını korumak için gerekli malzemeleri sunabilme.",null,null,null,null,"A9.4",null,"İhtiyacı olan kişilere halk sağlığını korumak için gerekli malzemeleri sunabilme."]
[null,"Soru","Açıklama",null,null,null,""]
[null,null,null,null,null,null,""]
[null,"Yanıt","Doğrulama yollarını belirtin (açıklama ve kanıt)",null,null,null,""]
[null,null,null,null,null,{"$f":"IF(E48=1,TRUE,FALSE)","v":false},""]
[null,null,null,null,null,{"$f":"IF(E48=2,TRUE,FALSE)","v":false},""]
[null,null,null,null,null,{"$f":"IF(E48=3,TRUE,FALSE)","v":false},""]
[null,null,null,null,null,{"$f":"IF(E48=4,TRUE,FALSE)","v":false},""]
[null,null,null,null,null,{"$f":"IF(E48=5,TRUE,FALSE)","v":false},""]
[null,null,null,null,null,{"$f":"IF(E48=6,TRUE,FALSE)","v":false},""]
[null,"Azami düzeyde dirençlilik elde etmek için yapılabilecek eylemler","Sorumlu kuruluş","Zaman cetveli",null,null,""]
[null,null,null,null,null,null,""]
[null,null,null,null,null,null,""]

{"sheet":"E10","index":12,"n_rows":28,"n_cols":9,"rows_kept":28,"cut":false,"hidden":false,"merged":[[21,2,26,3],[8,2,13,3],[19,2,19,3],[20,2,20,3],[18,2,18,3],[4,1,4,3],[5,2,5,3],[6,2,6,3],[7,2,7,3],[17,1,17,3]]}
[]
[]
[null,"A10. Halk sağlığının ve toparlanma/yeniden yapılanmanin entegrasyonu (Esas 10)",null,null,null,null,"A10",null,"Halk sağlığının ve toparlanma/yeniden yapılanmanin entegrasyonu (Esas 10)"]
[]
[null,"A10.1 Halk sağlığı ve refahı üzerindeki uzun vadeli etkilerin azaltılması",null,null,null,null,"A10.1",null,"Halk sağlığı ve refahı üzerindeki uzun vadeli etkilerin azaltılması"]
[null,"Soru","Açıklama"]
[]
[null,"Yanıt","Doğrulama yollarını belirtin (açıklama ve kanıt)"]
[null,null,null,null,null,{"$f":"IF(E9=1,TRUE,FALSE)","v":false}]
[null,null,null,null,null,{"$f":"IF(E9=2,TRUE,FALSE)","v":false}]
[null,null,null,null,null,{"$f":"IF(E9=3,TRUE,FALSE)","v":false}]
[null,null,null,null,null,{"$f":"IF(E9=4,TRUE,FALSE)","v":false}]
[null,null,null,null,null,{"$f":"IF(E9=5,TRUE,FALSE)","v":false}]
[null,null,null,null,null,{"$f":"IF(E9=6,TRUE,FALSE)","v":false}]
[null,"Azami düzeyde dirençlilik elde etmek için yapılabilecek eylemler","Sorumlu kuruluş","Zaman cetveli"]
[]
[]
[null,"A10.2 Öğrenme ve iyileştirme",null,null,null,null,"A10.2",null,"Öğrenme ve iyileştirme"]
[null,"Soru","Açıklama"]
[]
[null,"Yanıt","Doğrulama yollarını belirtin (açıklama ve kanıt)"]
[null,null,null,null,null,{"$f":"IF(E22=1,TRUE,FALSE)","v":false}]
[null,null,null,null,null,{"$f":"IF(E22=2,TRUE,FALSE)","v":false}]
[null,null,null,null,null,{"$f":"IF(E22=3,TRUE,FALSE)","v":false}]
[null,null,null,null,null,{"$f":"IF(E22=4,TRUE,FALSE)","v":false}]
[null,null,null,null,null,{"$f":"IF(E22=5,TRUE,FALSE)","v":false}]
[null,null,null,null,null,{"$f":"IF(E22=6,TRUE,FALSE)","v":false}]
[null,"Azami düzeyde dirençlilik elde etmek için yapılabilecek eylemler","Sorumlu kuruluş","Zaman cetveli"]

{"sheet":"About","index":13,"n_rows":0,"n_cols":0,"rows_kept":0,"cut":false,"hidden":false,"merged":[]}